fUSD/lending_fUSD_20240714
["ID","MTS","AMOUNT","RATE_DAILY","PERIOD"]
[332098742,1720961432401,-379.41942366,0.00011098,2]
[332098743,1720961432411,-1050.83205633,0.00011098,2]
[332098744,1720961432421,-789.61914132,0.00011098,2]
[332098745,1720961432430,-158.06376973,0.00011098,2]
[332098746,1720961432440,-205.58920191,0.00011098,2]
[332098747,1720961432449,-183.15229239,0.00011098,2]
[332098748,1720961432458,-400.0,0.00011098,2]
[332098749,1720961432468,-346.90118403,0.00011098,2]
[332098750,1720961432477,-895.34908254,0.00011098,2]
[332098751,1720961432487,-796.99850961,0.00011098,2]
[332098752,1720961432497,-652.09439114,0.00011098,2]
[332098753,1720961432506,-1016.47627032,0.00011098,2]
[332098754,1720961432522,-210.02763994,0.00011098,2]
[332098755,1720961432532,-158.98339555,0.00011098,2]
[332098756,1720961432541,-304.81474221,0.00011098,2]
[332098757,1720961432551,-160.39840905,0.00011098,2]
[332098758,1720961432560,-155.0,0.00011098,2]
[332098759,1720961432570,-200.19014862,0.00011098,2]
[332098760,1720961432579,-364.41692002,0.00011098,2]
[332098761,1720961432588,-159.24060617,0.00011098,2]
[332098762,1720961432598,-155.0,0.00011098,2]
[332098763,1720961432609,-220.55903591,0.00011098,2]
[332098764,1720961432619,-155.35008909,0.00011098,2]
[332098765,1720961432628,-329.22275465,0.00011098,2]
[332098766,1720961432638,-4317.44991041,0.00011098,2]
[332098767,1720961432649,-367.03516126,0.00011098,2]
[332098768,1720961432659,-167.34984429,0.00011098,2]
[332098769,1720961432668,-156.76606447,0.00011098,2]
[332098770,1720961432677,-297.26848214,0.00011098,2]
[332098771,1720961432687,-155.0,0.00011098,2]
[332098772,1720961432696,-195.28641418,0.00011098,2]
[332098773,1720961432706,-269.66888549,0.00011098,2]
[332098774,1720961432716,-661.47545687,0.00011098,2]
[332098775,1720961432726,-179.26419809,0.00011098,2]
[332098776,1720961432735,-286.38007176,0.00011098,2]
[332098777,1720961432744,-202.94946755,0.00011098,2]
[332098778,1720961432754,-401.2005,0.00011098,2]
[332098779,1720961432763,-266.70744929,0.00011098,2]
[332098780,1720961432772,-152.3647633,0.00011189,2]
[332098781,1720961432781,-361.07736391,0.00011197,2]
[332098782,1720961432790,-155.57608458,0.00011197,2]
[332098783,1720961432800,-155.0,0.00011197,2]
[332098784,1720961432810,-155.1014532,0.00011197,2]
[332098785,1720961432819,-44157.42720431,0.00011199,2]
[332098786,1720961432828,-436.43793814,0.00011199,2]
[332098787,1720961432838,-18797.64158307,0.00011818,2]
[332098788,1720961432847,-300.70090678,0.00011818,2]
[332098789,1720961432856,-313.92669703,0.00011818,2]
[332098790,1720961432866,-18797.64158307,0.00011818,2]
[332098791,1720961432875,-500.0,0.00011875,2]
[332098792,1720961432884,-1245.75,0.0001189,2]
[332098793,1720961432896,-250.0,0.00011901,2]
[332098794,1720961432905,-1000.0,0.00011903,2]
[332098795,1720961432917,-160.3,0.00011937,2]
[332098796,1720961432929,-250.0,0.00011976,2]
[332098797,1720961432938,-12320.82,0.00012006,2]
[332098798,1720961432947,-1068.44,0.00012006,2]
[332098799,1720961432958,-722.04,0.00012049,2]
[332098800,1720961432969,-261.28,0.00012103,2]
[332098801,1720961432978,-499.99,0.00012103,2]
[332098802,1720961432988,-438.28,0.00012124,2]
[332098803,1720961433000,-269.35,0.00012124,2]
[332098804,1720961433009,-999.99,0.00012124,2]
[332098805,1720961433019,-310.18,0.00012237,2]
[332098806,1720961433028,-155.48679227,0.00012314,2]
[332098807,1720961433038,-168.23,0.0001234,2]
[332098808,1720961433048,-246.04,0.00012745,2]
[332098809,1720961433058,-245.55,0.00012888,2]
[332098810,1720961433067,-838.9,0.00012941,2]
[332098811,1720961433077,-576.47,0.00012941,2]
[332098812,1720961433087,-171.36,0.00012971,2]
[332098813,1720961433097,-1250.0,0.00013,2]
[332098814,1720961433107,-165.09,0.00013078,2]
[332098815,1720961433116,-355.33,0.00013078,2]
[332098816,1720961433126,-355.33,0.00013078,2]
[332098817,1720961433136,-165.09,0.00013078,2]
[332098818,1720961433147,-165.09,0.00013178,2]
[332098819,1720961433157,-355.33,0.00013178,2]
[332098820,1720961433167,-165.09,0.00013178,2]
[332098821,1720961433176,-355.33,0.00013178,2]
[332098822,1720961433186,-313.0,0.0001332,2]
[332098823,1720961433196,-1000.0,0.00013391,2]
[332098824,1720961433206,-160.3,0.00013429,2]
[332098825,1720961433215,-155.0,0.000135,2]
[332098826,1720961433226,-155.47150963,0.000135,2]
[332098827,1720961433236,-220.51,0.00013507,3]
[332098828,1720961433245,-51184.5667,0.0001351,2]
[332098829,1720961433255,-1000.0,0.0001351,2]
[332098830,1720961433265,-150.0,0.00013539,2]
[332098831,1720961433275,-150.0,0.00013567,2]
[332098832,1720961433285,-150.0,0.00013579,2]
[332098833,1720961433295,-188.42196949,0.00013598,2]
[332098834,1720961433304,-452.98532315,0.00013598,2]
[332098835,1720961433314,-179241.5429,0.0001361,2]
[332098836,1720961433324,-150.0,0.00013641,2]
[332098837,1720961433334,-150.0,0.00013648,2]
[332098838,1720961433343,-1000.0,0.00013653,2]
[332098839,1720961433352,-150.0,0.00013659,2]
[332098840,1720961433362,-150.0,0.00013664,2]
[332098841,1720961433371,-150.0,0.00013674,2]
[332098842,1720961433381,-500.0,0.00013689,2]
[332098843,1720961433391,-500.0,0.0001369,2]
[332098844,1720961433401,-500.0,0.0001369,2]
[332098845,1720961433411,-192.90812469,0.00013697,2]
[332098846,1720961433422,-201.33439646,0.00013698,2]
[332098847,1720961433431,-500.0,0.00013698,2]
[332098848,1720961433441,-500.0,0.00013698,2]
[332098849,1720961433450,-500.0,0.00013698,2]
[332098850,1720961433460,-500.0,0.00013698,2]
[332098851,1720961433469,-500.0,0.00013698,2]
[332098852,1720961433479,-500.0,0.00013698,2]
[332098853,1720961433488,-500.0,0.00013698,2]
[332098854,1720961433498,-500.0,0.00013698,2]
[332098855,1720961433508,-711.24,0.00013698,2]
[332098856,1720961433518,-500.0,0.00013698,2]
[332098857,1720961433527,-500.0,0.00013698,2]
[332098858,1720961433537,-500.0,0.00013698,2]
[332098859,1720961433547,-500.0,0.00013698,2]
[332098860,1720961433556,-500.0,0.00013698,2]
[332098861,1720961433565,-500.0,0.00013698,2]
[332098862,1720961433575,-500.0,0.00013698,2]
[332098863,1720961433584,-500.0,0.00013698,2]
[332098864,1720961433594,-500.0,0.00013698,2]
[332098865,1720961433603,-500.0,0.00013698,2]
[332098866,1720961433613,-500.0,0.00013698,2]
[332098867,1720961433623,-500.0,0.00013698,2]
[332098868,1720961433633,-500.0,0.00013698,2]
[332098869,1720961433643,-500.0,0.00013698,2]
[332098870,1720961433653,-246.73993547,0.00013698,2]
[332098871,1720961433663,-500.0,0.00013698,2]
[332098872,1720961433672,-500.0,0.00013698,2]
[332098873,1720961433682,-341.94969971,0.00013698,2]
[332098874,1720961434138,-158.05030029,0.00013698,2]
[332098875,1720961434149,-500.0,0.00013698,2]
[332098876,1720961434159,-500.0,0.00013698,2]
[332098877,1720961434168,-500.0,0.00013698,2]
[332098878,1720961434178,-500.0,0.00013698,2]
[332098879,1720961434189,-486.9941454,0.00013698,2]
[332098880,1720961434198,-500.0,0.00013698,2]
[332098881,1720961434208,-500.0,0.00013698,2]
[332098882,1720961434218,-500.0,0.00013698,2]
[332098883,1720961434227,-500.0,0.00013698,2]
[332098884,1720961434238,-500.0,0.00013698,2]
[332098885,1720961434248,-500.0,0.00013698,2]
[332098886,1720961434258,-500.0,0.00013698,2]
[332098887,1720961434268,-500.0,0.00013698,2]
[332098888,1720961434278,-500.0,0.00013698,2]
[332098889,1720961434288,-500.0,0.00013698,2]
[332098890,1720961434298,-500.0,0.00013698,2]
[332098891,1720961434307,-500.0,0.00013698,2]
[332098892,1720961434317,-500.0,0.00013698,2]
[332098893,1720961434327,-500.0,0.00013698,2]
[332098894,1720961434336,-500.0,0.00013698,2]
[332098895,1720961434346,-500.0,0.00013698,2]
[332098896,1720961434356,-500.0,0.00013698,2]
[332098897,1720961434365,-500.0,0.00013698,2]
[332098898,1720961434375,-500.0,0.00013698,2]
[332098899,1720961434384,-500.0,0.00013698,2]
[332098900,1720961434398,-466.33879569,0.00013698,2]
[332098901,1720961434411,-33.66120431,0.00013698,2]
[332098902,1720961434420,-500.0,0.00013698,2]
[332098903,1720961434430,-500.0,0.00013698,2]
[332098904,1720961434440,-500.0,0.00013698,2]
[332098905,1720961434449,-500.0,0.00013698,2]
[332098906,1720961434459,-500.0,0.00013698,2]
[332098907,1720961434469,-500.0,0.00013698,2]
[332098908,1720961434479,-54.93429569,0.00013698,2]
[332098909,1720961434503,-445.06570431,0.00013698,2]
[332098910,1720961434512,-500.0,0.00013698,2]
[332098911,1720961434522,-500.0,0.00013698,2]
[332098912,1720961434532,-245.50901526,0.00013698,2]
[332098913,1720961434542,-500.0,0.00013698,2]
[332098914,1720961434551,-500.0,0.00013698,2]
[332098915,1720961434561,-500.0,0.00013698,2]
[332098916,1720961434571,-500.0,0.00013698,2]
[332098917,1720961434580,-500.0,0.00013698,2]
[332098918,1720961434589,-44.47320074,0.00013698,2]
[332098919,1720961434602,-424.54627044,0.00013698,2]
[332098920,1720961434613,-30.98052882,0.00013698,2]
[332098921,1720961434623,-500.0,0.00013698,2]
[332098922,1720961434632,-500.0,0.00013698,2]
[332098923,1720961434644,-454.59069362,0.00013698,2]
[332098924,1720961434654,-500.0,0.00013698,2]
[332098925,1720961434664,-500.0,0.00013698,2]
[332098926,1720961434674,-500.0,0.00013698,2]
[332098927,1720961434683,-496.22877756,0.00013698,2]
[332098928,1720961434695,-3.77122244,0.00013698,2]
[332098929,1720961434705,-520.87,0.00013698,2]
[332098930,1720961434715,-500.0,0.00013698,2]
[332098931,1720961434724,-500.0,0.00013698,2]
[332098932,1720961434734,-500.0,0.00013698,2]
[332098933,1720961434743,-500.0,0.00013698,2]
[332098934,1720961434754,-64.38028698,0.00013698,2]
[332098935,1720961434765,-435.61971302,0.00013698,2]
[332098936,1720961434775,-500.0,0.00013698,2]
[332098937,1720961434784,-500.0,0.00013698,2]
[332098938,1720961434794,-500.0,0.00013698,2]
[332098939,1720961434804,-500.0,0.00013698,2]
[332098940,1720961434814,-565.62,0.00013698,2]
[332098941,1720961434824,-638.68,0.00013698,2]
[332098942,1720961434833,-500.0,0.00013698,2]
[332098943,1720961434843,-500.0,0.00013698,2]
[332098944,1720961434852,-500.0,0.00013698,2]
[332098945,1720961434862,-500.0,0.00013698,2]
[332098946,1720961434872,-500.0,0.00013698,2]
[332098947,1720961434882,-500.0,0.00013698,2]
[332098948,1720961434896,-500.0,0.00013698,2]
[332098949,1720961434906,-500.0,0.00013698,2]
[332098950,1720961434917,-500.0,0.00013698,2]
[332098951,1720961434929,-500.0,0.00013698,2]
[332098952,1720961434940,-500.0,0.00013698,2]
[332098953,1720961434950,-500.0,0.00013698,2]
[332098954,1720961434960,-500.0,0.00013698,2]
[332098955,1720961434970,-500.0,0.00013698,2]
[332098956,1720961434980,-500.0,0.00013698,2]
[332098957,1720961434991,-500.0,0.00013698,2]
[332098958,1720961435003,-500.0,0.00013698,2]
[332098959,1720961435013,-500.0,0.00013698,2]
[332098960,1720961435023,-500.0,0.00013698,2]
[332098961,1720961435033,-500.0,0.00013698,2]
[332098962,1720961435042,-500.0,0.00013698,2]
[332098963,1720961435052,-500.0,0.00013698,2]
[332098964,1720961435061,-500.0,0.00013698,2]
[332098965,1720961435071,-500.0,0.00013698,2]
[332098966,1720961435081,-500.0,0.00013698,2]
[332098967,1720961435091,-500.0,0.00013698,2]
[332098968,1720961435101,-500.0,0.00013698,2]
[332098969,1720961435110,-500.0,0.00013698,2]
[332098970,1720961435120,-500.0,0.00013698,2]
[332098971,1720961435130,-600.49,0.00013698,2]
[332098972,1720961435142,-500.0,0.00013698,2]
[332098973,1720961435151,-500.0,0.00013698,2]
[332098974,1720961435161,-500.0,0.00013698,2]
[332098975,1720961435170,-500.0,0.00013698,2]
[332098976,1720961435182,-500.0,0.00013698,2]
[332098977,1720961435192,-500.0,0.00013698,2]
[332098978,1720961435202,-500.0,0.00013698,2]
[332098979,1720961435211,-500.0,0.00013698,2]
[332098980,1720961435221,-500.0,0.00013698,2]
[332098981,1720961435231,-500.0,0.00013698,2]
[332098982,1720961435240,-500.0,0.00013698,2]
[332098983,1720961435249,-511.19,0.00013698,2]
[332098984,1720961435259,-500.0,0.00013698,2]
[332098985,1720961435269,-500.0,0.00013698,2]
[332098986,1720961435279,-500.0,0.00013698,2]
[332098987,1720961435288,-500.0,0.00013698,2]
[332098988,1720961435298,-500.0,0.00013698,2]
[332098989,1720961435308,-500.0,0.00013698,2]
[332098990,1720961435318,-500.0,0.00013698,2]
[332098991,1720961435328,-500.0,0.00013698,2]
[332098992,1720961435337,-500.0,0.00013698,2]
[332098993,1720961435347,-500.0,0.00013698,2]
[332098994,1720961435357,-500.0,0.00013698,2]
[332098995,1720961435367,-500.0,0.00013698,2]
[332098996,1720961435376,-500.0,0.00013698,2]
[332098997,1720961435385,-500.0,0.00013698,2]
[332098998,1720961435398,-500.0,0.00013698,2]
[332098999,1720961435408,-500.0,0.00013698,2]
[332099000,1720961435418,-500.0,0.00013698,2]
[332099001,1720961435429,-500.0,0.00013698,2]
[332099002,1720961435439,-500.0,0.00013698,2]
[332099003,1720961435448,-500.0,0.00013698,2]
[332099004,1720961435459,-500.0,0.00013698,2]
[332099005,1720961435468,-500.0,0.00013698,2]
[332099006,1720961435478,-500.0,0.00013698,2]
[332099007,1720961435487,-500.0,0.00013698,2]
[332099008,1720961435497,-500.0,0.00013698,2]
[332099009,1720961435507,-500.0,0.00013698,2]
[332099010,1720961435516,-500.0,0.00013698,2]
[332099011,1720961435526,-500.0,0.00013698,2]
[332099012,1720961435535,-1.32037161,0.00013698,2]
[332099013,1720961435550,-498.67962839,0.00013698,2]
[332099014,1720961435559,-500.0,0.00013698,2]
[332099015,1720961435568,-150.0,0.00013698,2]
[332099016,1720961435578,-500.0,0.00013698,2]
[332099017,1720961435587,-500.0,0.00013698,2]
[332099018,1720961435596,-500.0,0.00013698,2]
[332099019,1720961435606,-500.0,0.00013698,2]
[332099020,1720961435616,-500.0,0.00013698,2]
[332099021,1720961435625,-500.0,0.00013698,2]
[332099022,1720961435635,-500.0,0.00013698,2]
[332099023,1720961435648,-500.0,0.00013698,2]
[332099024,1720961435658,-500.0,0.00013698,2]
[332099025,1720961435668,-500.0,0.00013698,2]
[332099026,1720961435678,-500.0,0.00013698,2]
[332099027,1720961435687,-500.0,0.00013698,2]
[332099028,1720961435696,-500.0,0.00013698,2]
[332099029,1720961435705,-500.0,0.00013698,2]
[332099030,1720961435715,-500.0,0.00013698,2]
[332099031,1720961435724,-500.0,0.00013698,2]
[332099032,1720961435733,-500.0,0.00013698,2]
[332099033,1720961435743,-500.0,0.00013698,2]
[332099034,1720961435752,-500.0,0.00013698,2]
[332099035,1720961435761,-500.0,0.00013698,2]
[332099036,1720961435770,-500.0,0.00013698,2]
[332099037,1720961435779,-500.0,0.00013698,2]
[332099038,1720961435789,-500.0,0.00013698,2]
[332099039,1720961435799,-500.0,0.00013698,2]
[332099040,1720961435808,-500.0,0.00013698,2]
[332099041,1720961435817,-500.0,0.00013698,2]
[332099042,1720961435827,-500.0,0.00013698,2]
[332099043,1720961435836,-500.0,0.00013698,2]
[332099044,1720961435845,-500.0,0.00013698,2]
[332099045,1720961435855,-500.0,0.00013698,2]
[332099046,1720961435864,-500.0,0.00013698,2]
[332099047,1720961435873,-494.49992974,0.00013698,2]
[332099048,1720961435882,-500.0,0.00013698,2]
[332099049,1720961435893,-500.0,0.00013698,2]
[332099050,1720961435902,-500.0,0.00013698,2]
[332099051,1720961435911,-500.0,0.00013698,2]
[332099052,1720961435923,-500.0,0.00013698,2]
[332099053,1720961435932,-500.0,0.00013698,2]
[332099054,1720961435941,-500.0,0.00013698,2]
[332099055,1720961435950,-500.0,0.00013698,2]
[332099056,1720961435960,-500.0,0.00013698,2]
[332099057,1720961435969,-500.0,0.00013698,2]
[332099058,1720961435978,-500.0,0.00013698,2]
[332099059,1720961435987,-602.49,0.00013698,2]
[332099060,1720961435999,-500.0,0.00013698,2]
[332099061,1720961436008,-500.0,0.00013698,2]
[332099062,1720961436017,-500.0,0.00013698,2]
[332099063,1720961436026,-500.0,0.00013698,2]
[332099064,1720961436035,-500.0,0.00013698,2]
[332099065,1720961436044,-444.2314445,0.00013698,2]
[332099066,1720961436057,-55.7685555,0.00013698,2]
[332099067,1720961436066,-500.0,0.00013698,2]
[332099068,1720961436075,-111.71355607,0.00013698,2]
[332099086,1720961438192,-173.45,0.00013137,2]
[332099087,1720961438201,-388.28644393,0.00013698,2]
[332099088,1720961438211,-500.0,0.00013698,2]
[332099089,1720961438220,-7.16219828,0.00013698,2]
[332099090,1720961438231,-427.38520495,0.00013698,2]
[332099091,1720961438248,-112.44467337,0.00013698,2]
[332099092,1720961438258,-500.0,0.00013698,2]
[332099093,1720961438267,-500.0,0.00013698,2]
[332099094,1720961438276,-557.21,0.00013698,2]
[332099095,1720961438285,-151.0,0.00013698,2]
[332099096,1720961438294,-284.28159247,0.00013698,2]
[332099097,1720961438306,-215.71840753,0.00013698,2]
[332099098,1720961438315,-500.0,0.00013698,2]
[332099099,1720961438324,-500.0,0.00013698,2]
[332099100,1720961438333,-297.03951379,0.00013698,2]
[332099101,1720961438417,-202.96048621,0.00013698,2]
[332099102,1720961438430,-130.5338908,0.00013698,2]
[332099277,1720961440266,-415.9161092,0.00013698,2]
[332099279,1720961440276,-172.708935,0.00013698,2]
[332099281,1720961440285,-500.0,0.00013698,2]
[332099283,1720961440295,-540.44,0.00013698,2]
[332099285,1720961440304,-500.0,0.00013698,2]
[332099287,1720961440314,-500.0,0.00013698,2]
[332099288,1720961440323,-500.0,0.00013698,2]
[332099289,1720961440334,-120.88836282,0.00013698,2]
[332099290,1720961440345,-417.81286233,0.00013698,2]
[332099291,1720961440357,-88.03877485,0.00013698,2]
[332099292,1720961440367,-500.0,0.00013698,2]
[332099293,1720961440377,-500.0,0.00013698,2]
[332099294,1720961440386,-500.0,0.00013698,2]
[332099295,1720961440397,-151.0,0.00013698,2]
[332099296,1720961440407,-500.0,0.00013698,2]
[332099297,1720961440416,-500.0,0.00013698,2]
[332099299,1720961440426,-500.0,0.00013698,2]
[332099301,1720961440436,-251.47433411,0.00013698,2]
[332099303,1720961440445,-22.16592619,0.00013698,2]
[332099305,1720961440456,-477.83407381,0.00013698,2]
[332099307,1720961440466,-500.0,0.00013698,2]
[332099309,1720961440476,-500.0,0.00013698,2]
[332099311,1720961440485,-500.0,0.00013698,2]
[332099313,1720961440495,-332.22620802,0.00013698,2]
[332099316,1720961440507,-167.77379198,0.00013698,2]
[332099317,1720961440516,-500.0,0.00013698,2]
[332099319,1720961440526,-500.0,0.00013698,2]
[332099321,1720961440535,-500.0,0.00013698,2]
[332099323,1720961440545,-500.0,0.00013698,2]
[332099325,1720961440553,-500.0,0.00013698,2]
[332099327,1720961440562,-476.43,0.00013698,2]
[332099329,1720961440571,-500.0,0.00013698,2]
[332099331,1720961440581,-500.0,0.00013698,2]
[332099333,1720961440590,-500.0,0.00013698,2]
[332099335,1720961440600,-500.0,0.00013698,2]
[332099337,1720961440610,-500.0,0.00013698,2]
[332099339,1720961440620,-500.0,0.00013698,2]
[332099341,1720961440629,-500.0,0.00013698,2]
[332099343,1720961440638,-500.0,0.00013698,2]
[332099345,1720961440648,-500.0,0.00013698,2]
[332099347,1720961440658,-500.0,0.00013698,2]
[332099349,1720961440667,-500.0,0.00013698,2]
[332099351,1720961440677,-500.0,0.00013698,2]
[332099353,1720961440687,-500.0,0.00013698,2]
[332099355,1720961440697,-500.0,0.00013698,2]
[332099357,1720961440707,-500.0,0.00013698,2]
[332099359,1720961440717,-500.0,0.00013698,2]
[332099361,1720961440726,-500.0,0.00013698,2]
[332099363,1720961440735,-549.64,0.00013698,2]
[332099365,1720961440745,-500.0,0.00013698,2]
[332099367,1720961440755,-500.0,0.00013698,2]
[332099369,1720961440764,-496.65424846,0.00013698,2]
[332099371,1720961440774,-500.0,0.00013698,2]
[332099373,1720961440784,-500.0,0.00013698,2]
[332099375,1720961440793,-500.0,0.00013698,2]
[332099377,1720961440803,-539.16667941,0.00013698,2]
[332099379,1720961440812,-500.0,0.00013698,2]
[332099381,1720961440822,-500.0,0.00013698,2]
[332099383,1720961440831,-500.0,0.00013698,2]
[332099385,1720961440840,-500.0,0.00013698,2]
[332099387,1720961440850,-500.0,0.00013698,2]
[332099389,1720961440860,-151.0,0.00013698,2]
[332099391,1720961440869,-500.0,0.00013698,2]
[332099393,1720961440879,-500.0,0.00013698,2]
[332099395,1720961440889,-500.0,0.00013698,2]
[332099397,1720961440899,-500.0,0.00013698,2]
[332099399,1720961440908,-500.0,0.00013698,2]
[332099401,1720961440918,-500.0,0.00013698,2]
[332099403,1720961440931,-609.9,0.00013698,2]
[332099405,1720961440940,-444.26983575,0.00013698,2]
[332099407,1720961440950,-500.0,0.00013698,2]
[332099409,1720961440961,-500.0,0.00013698,2]
[332099411,1720961440970,-500.0,0.00013698,2]
[332099413,1720961440980,-151.329121,0.00013698,2]
[332099415,1720961440989,-500.0,0.00013698,2]
[332099417,1720961440999,-500.0,0.00013698,2]
[332099419,1720961441009,-209.27789979,0.00013698,2]
[332099421,1720961441020,-500.0,0.00013698,2]
[332099423,1720961441029,-500.0,0.00013698,2]
[332099425,1720961441038,-500.0,0.00013698,2]
[332099427,1720961441047,-500.0,0.00013698,2]
[332099429,1720961441056,-500.0,0.00013698,2]
[332099431,1720961441066,-500.0,0.00013698,2]
[332099432,1720961441075,-500.0,0.00013698,2]
[332099434,1720961441084,-500.0,0.00013698,2]
[332099436,1720961441094,-518.57,0.00013698,2]
[332099438,1720961441103,-151.0,0.00013698,2]
[332099440,1720961441112,-500.0,0.00013698,2]
[332099442,1720961441122,-500.0,0.00013698,2]
[332099444,1720961441131,-500.0,0.00013698,2]
[332099446,1720961441141,-500.0,0.00013698,2]
[332099448,1720961441152,-500.0,0.00013698,2]
[332099450,1720961441161,-500.0,0.00013698,2]
[332099452,1720961441170,-500.0,0.00013698,2]
[332099454,1720961441180,-500.0,0.00013698,2]
[332099456,1720961441189,-500.0,0.00013698,2]
[332099458,1720961441199,-500.0,0.00013698,2]
[332099461,1720961441209,-500.0,0.00013698,2]
[332099463,1720961441219,-500.0,0.00013698,2]
[332099464,1720961441228,-151.0,0.00013698,2]
[332099466,1720961441237,-500.0,0.00013698,2]
[332099468,1720961441247,-500.0,0.00013698,2]
[332099470,1720961441257,-500.0,0.00013698,2]
[332099472,1720961441266,-500.0,0.00013698,2]
[332099474,1720961441276,-500.0,0.00013698,2]
[332099476,1720961441285,-500.0,0.00013698,2]
[332099498,1720961441483,-500.0,0.00013698,2]
[332099500,1720961441493,-500.0,0.00013698,2]
[332099502,1720961441503,-580.45,0.00013698,2]
[332099504,1720961441512,-500.0,0.00013698,2]
[332099506,1720961441522,-500.0,0.00013698,2]
[332099508,1720961441532,-500.0,0.00013698,2]
[332099510,1720961441541,-500.0,0.00013698,2]
[332099512,1720961441551,-500.0,0.00013698,2]
[332099514,1720961441561,-500.0,0.00013698,2]
[332099515,1720961441571,-500.0,0.00013698,2]
[332099517,1720961441581,-312.39587298,0.00013698,2]
[332099520,1720961441591,-500.0,0.00013698,2]
[332099521,1720961441601,-500.0,0.00013698,2]
[332099523,1720961441611,-500.0,0.00013698,2]
[332099525,1720961441620,-500.0,0.00013698,2]
[332099527,1720961441630,-500.0,0.00013698,2]
[332099528,1720961441639,-794.49,0.00013698,2]
[332099529,1720961441648,-500.0,0.00013698,2]
[332099530,1720961441657,-567.13,0.00013698,2]
[332099531,1720961441667,-500.0,0.00013698,2]
[332099532,1720961441676,-516.65,0.00013698,2]
[332099533,1720961441686,-500.0,0.00013698,2]
[332099534,1720961441696,-500.0,0.00013698,2]
[332099535,1720961441706,-500.0,0.00013698,2]
[332099536,1720961441715,-500.0,0.00013698,2]
[332099538,1720961441725,-500.0,0.00013698,2]
[332099540,1720961441734,-500.0,0.00013698,2]
[332099541,1720961441744,-500.0,0.00013698,2]
[332099543,1720961441754,-500.0,0.00013698,2]
[332099546,1720961441763,-500.0,0.00013698,2]
[332099547,1720961441773,-1133.57,0.00013698,2]
[332099549,1720961441783,-500.0,0.00013698,2]
[332099551,1720961441792,-584.71,0.00013698,2]
[332099553,1720961441801,-500.0,0.00013698,2]
[332099555,1720961441811,-500.0,0.00013698,2]
[332099557,1720961441820,-500.0,0.00013698,2]
[332099559,1720961441830,-500.0,0.00013698,2]
[332099561,1720961441840,-500.0,0.00013698,2]
[332099563,1720961441849,-500.0,0.00013698,2]
[332099565,1720961441859,-479.40811287,0.00013698,2]
[332099567,1720961441869,-500.0,0.00013698,2]
[332099569,1720961441879,-500.0,0.00013698,2]
[332099571,1720961441889,-500.0,0.00013698,2]
[332099573,1720961441899,-500.0,0.00013698,2]
[332099576,1720961441909,-510.08,0.00013698,2]
[332099578,1720961441919,-500.0,0.00013698,2]
[332099579,1720961441933,-500.0,0.00013698,2]
[332099582,1720961441943,-500.0,0.00013698,2]
[332099584,1720961441952,-500.0,0.00013698,2]
[332099585,1720961441963,-500.0,0.00013698,2]